Cogmind - Beta 16.1 @@@ ROGUE MODE // 2026.03.20 @ 16:50:16 Player: rootmos Result: Destroyed by Y-45 Defender with Heavy Assault Rifle Performance ------------- Evolutions (1) 500 Regions Visited (3) 600 Robots Destroyed (60) 300 Value Destroyed (1722) 1722 Prototype IDs (2) 40 Alien Tech Used (0) 0 Bonus (0) 0 TOTAL SCORE: 3162 Bonus ------- None Cogmind --------- Core Integrity 0/400 Matter 300/300 Energy 94/100 System Corruption 1% Temperature Cool (9) Movement Walking (120) Location -9/Storage Parts ------- > --- POWER (1) -------- (None) > --- PROPULSION (2) --- Aluminum Leg Aluminum Leg > --- UTILITY (3) ------ Cooling System Small Storage Unit > --- WEAPON (3) ------- (None) > --- INVENTORY (8) ---- Aluminum Leg Aluminum Leg Aluminum Leg Small Storage Unit Weight Redist. System Improved Targeting Computer Peak State ------------ > --- POWER ------------ Improved Ion Engine > --- PROPULSION ------- Aluminum Leg Aluminum Leg > --- UTILITY ---------- Cooling System Small Storage Unit Power Shielding > --- WEAPON ----------- Heavy Particle Gun Heavy Particle Gun Improved Assault Rifle > --- INVENTORY -------- Improved Ion Engine Aluminum Leg Aluminum Leg Cooling System Small Storage Unit Weight Redist. System Improved Targeting Computer [Rating: 20] Favorites ----------- Power Improved Ion Engine Engine Improved Ion Engine Propulsion Aluminum Leg Leg Aluminum Leg Utility Small Storage Unit Device Cooling System Storage Small Storage Unit Protection Power Shielding Weapon Heavy Particle Gun Energy Gun Heavy Particle Gun Ballistic Gun Improved Assault Rifle Launcher Grenade Launcher Special Weapon Plasma Cutter Build | -11 -10 -9 -9 ------- Run | Yrd Mat Mat Sto Slots Evolved 2 | . . 2 . Power . | . . . . Propulsion . | . . . . Utility 1 | . . 1 . Weapon 1 | . . 1 . Parts Attached 43 | . 14 25 4 Power 7 | . 4 3 . Engine 7 | . 4 3 . Core . | . . . . Reactor . | . . . . Propulsion 16 | . 2 12 2 Treads . | . . . . Leg 16 | . 2 12 2 Wheel . | . . . . Hover . | . . . . Flight . | . . . . Utility 7 | . 3 2 2 Device 3 | . 1 1 1 Storage 1 | . . 1 . Processor . | . . . . Hackware . | . . . . Protection 3 | . 2 . 1 Artifact . | . . . . Weapon 13 | . 5 8 . Energy Gun 6 | . 2 4 . Energy Cannon . | . . . . Ballistic Gun 4 | . 1 3 . Ballistic Cannon . | . . . . Launcher 2 | . 2 . . Special Weapon 1 | . . 1 . Impact Weapon . | . . . . Slashing Weapon . | . . . . Piercing Weapon . | . . . . Special Melee Weapon . | . . . . Unidentified Prototypes 2 | . . 2 . Parts Lost 14 | . 4 3 7 Power 3 | . 1 . 2 Propulsion . | . . . . Utility 3 | . . 1 2 Weapon 8 | . 3 2 3 Highest Loss Streak 7 | . 3 1 7 To Critical Strikes . | . . . . Average Backups 7 | 6 6 7 7 Power 1 | 1 2 1 . Propulsion 2 | 4 2 2 2 Utility 3 | . 1 4 4 Weapon . | 1 . . . Tool/Special . | . . . . Unused Backups 19 | . 8 5 6 Power 1 | . . 1 . Propulsion 10 | . 6 1 3 Utility 7 | . 1 3 3 Weapon 1 | . 1 . . Tool/Special . | . . . . Average Slot Usage (%) 97 | . 95 98 97 Engine 11 | . 14 11 10 Leg 23 | . 28 22 22 Device 3 | . . 2 10 Storage 16 | . 14 19 11 Protection 11 | . 12 11 10 Energy Gun 12 | . 5 12 21 Ballistic Gun 11 | . 13 10 10 Launcher 6 | . 5 9 . Peak Build Rating 20 | 6 7 20 20 Average Rating 13 | 6 6 14 19 On Entrance 9 | 6 6 7 20 Avg Prop Armor Cover (%) . | . . . . Naked Turns . | . . . . Heaviest Build 24 | 11 15 24 24 Greatest Support 20 | 20 20 20 20 Greatest Overweight (x) 1 | . . 1 1 Average Overweight (x) . | . . . . Largest Inventory Capacity 8 | 8 8 8 8 Average Capacity 8 | 8 8 8 8 Most Carried 8 | 6 8 8 8 Average Carried 7 | 5 6 7 7 Final Capacity 8 | 8 8 8 8 Final Carried 8 | 4 8 8 6 Class Distribution -------------------- 31% | Tank 30% | Mutant 26% | Scavenger-Bomber 9% | Bomber 3% | Scavenger-Mutant Dominant Class ---------------- Mutant | -10/Materials Scavenger-Bomber | -9/Materials Tank | -9/Storage Resources | -11 -10 -9 -9 ----------- Run | Yrd Mat Mat Sto Matter Collected 1309 | 200 312 670 127 Remotely . | . . . . Salvage Created 1958 | . 427 1043 488 Parts 115 | . 23 61 31 Haulers Intercepted . | . . . . Recyclers Shooed 1 | . 1 . . Parts Field Recycled . | . . . . Retrieved Matter . | . . . . Parts Self-Destructed . | . . . . Prevented . | . . . . Parts Restored . | . . . . Kills | -11 -10 -9 -9 ------- Run | Yrd Mat Mat Sto Combat Hostiles Destroyed 46 | . 9 24 13 Melee 1 | . 1 . . Guns 33 | . 3 17 13 AOE 12 | . 5 7 . Classes Destroyed 10 | . 5 5 . Worker 3 | . . 3 . Builder 5 | . 2 3 . Tunneler 1 | . . 1 . Recycler 3 | . 2 1 . Operator 2 | . 1 1 . Swarmer 5 | . 2 . 3 Grunt 30 | . 7 14 9 Brawler 2 | . . 2 . Duelist 2 | . . 2 . Sentry 7 | . . 6 1 Best Kill Streak 8 | . 8 7 5 Combat Bots Only 5 | . 4 5 5 Max Kills in Single Turn 4 | . 4 2 1 Gunslinging 1 | . . 1 . Exploded 2 | . 2 1 . Melee 1 | . 1 . . Uniques/NPCs Destroyed . | . . . . Combat | -11 -10 -9 -9 -------- Run | Yrd Mat Mat Sto Hostile Shots Fired 268 | . 72 90 106 Missed 70 | . 17 27 26 Hits 198 | . 55 63 80 Melee 1 | . . 1 . Projectile 197 | . 55 62 80 Critical Strikes 4 | . 1 1 2 Actively Blocked 1 | . . . 1 Damage Taken 2513 | . 683 948 882 Core 500 | . 88 146 266 Absorbed by Shields . | . . . . Redirected to Shielding 104 | . 29 25 50 Regen/Repaired (Parts) 39 | . . . 39 Core Remaining (%) 82 | 100 64 . . Volleys Fired 122 | . 42 47 33 Largest 3 | . 2 3 3 Hottest 133 | . 90 133 133 Shots Fired 265 | . 65 118 82 Gun 236 | . 56 98 82 Cannon . | . . . . Launcher 29 | . 9 20 . Special . | . . . . Kinetic 124 | . 53 46 25 Thermal 112 | . 3 52 57 Explosive 29 | . 9 20 . Electromagnetic . | . . . . Robot Hit Streak 11 | . 5 10 11 Robot Miss Streak 8 | . 4 8 4 Penetration Max . | . . . . Secondary Targets 3 | . . 3 . Max Gunslinging Chain 1 | . . 1 . Shots Hit Robots 153 | . 34 71 48 Core Hits 93 | . 26 51 16 Critical Kills . | . . . . Critical Parts Destroyed . | . . . . Critical Strikes 5 | . . 2 3 Burn 5 | . . 2 3 Melee Attacks . | . . . . Impact . | . . . . Slashing . | . . . . Piercing . | . . . . Sneak Attacks . | . . . . Combat Hostiles . | . . . . Follow-up Attacks . | . . . . Damage Inflicted 3907 | . 953 2085 869 Guns 2183 | . 344 976 863 Cannons . | . . . . Explosions 1712 | . 603 1109 . Melee . | . . . . Ramming 12 | . 6 . 6 Kinetic 986 | . 333 475 178 Thermal 1197 | . 11 501 685 Explosive 1712 | . 603 1109 . Electromagnetic . | . . . . Impact . | . . . . Slashing . | . . . . Piercing . | . . . . Highest Corruption 1 | . . . 1 Average Corruption 1 | . . . 1 Corruption Purged . | . . . . Corruption Blocked . | . . . . Effects 5 | . . . 5 Message Errors 1 | . . . 1 Matter Fused 1 | . . . 1 Heat Flow Errors 1 | . . . 1 Weapon Failures 2 | . . . 2 Overload Shots . | . . . . Overflow Damage 79 | . 3 76 . Projectiles . | . . . . Explosions 79 | . 3 76 . Melee . | . . . . Knockbacks . | . . . . Impact . | . . . . Kinetic . | . . . . Secondary . | . . . . Self-Inflicted Damage 160 | . 29 131 . Shots 4 | . 2 2 . Rammed . | . . . . Targets Rammed 8 | . 3 . 5 Kicked 8 | . 3 . 5 Crushed . | . . . . Highest Temperature 248 | . 30 191 248 Average Temperature 39 | . 9 48 40 Received Heat Transfer 873 | . 333 333 207 Siege Activations . | . . . . Martial Activations . | . . . . Shielding Activations . | . . . . Robots Disrupted . | . . . . Combat Hostiles . | . . . . Robots Corrupted . | . . . . Combat Hostiles . | . . . . Parts Fried . | . . . . Impact Corruptions . | . . . . Robots Melted . | . . . . Combat Hostiles . | . . . . Parts Melted 4 | . . . 4 Heat Transferred 2763 | . 25 1184 1554 Parts Sabotaged . | . . . . Parts Stolen . | . . . . Parts Stripped . | . . . . Power Chain Reactions . | . . . . Alert | -11 -10 -9 -9 ------- Run | Yrd Mat Mat Sto Maximum Alert Level 1 | . . 1 1 Low Security (%) 79 | 100 100 84 34 Level 1 20 | . . 15 65 Level 2 . | . . . . Level 3 . | . . . . Level 4 . | . . . . Level 5 . | . . . . High Security . | . . . . Max Security . | . . . . Peak Influence 361 | . 118 361 271 Initial 146 | . . . 146 Average 99 | . 30 104 201 Influence Increases 1506 | . 295 875 336 Destroy 0b10 Robot/C 920 | . 180 480 260 Destroy 0b10 Robot/NC 70 | . 25 45 . Destroy Leader 210 | . 40 130 40 Successful Hack 7 | . . 4 3 Disable Machine 90 | . . 90 . Destroy Structure 164 | . 50 111 3 Lose Combat Pursuer 45 | . . 15 30 Influence Decreases 1372 | . 295 526 551 Entered New Map 203 | . . . 203 Time Decay 1049 | . 275 496 278 Lost Part 120 | . 20 30 70 Squads Dispatched 9 | . 3 3 3 Investigation 3 | . 1 1 1 Extermination . | . . . . Reinforcement 6 | . 2 2 2 Assault . | . . . . Garrison . | . . . . Intercept . | . . . . Searches Triggered . | . . . . Construction Impeded 1 | . . 1 . Haulers Reinforced . | . . . . Active Scanning Responses . | . . . . Cargo Convoy Interrupts . | . . . . Stealth | -11 -10 -9 -9 --------- Run | Yrd Mat Mat Sto Distress Signals 5 | . 2 2 1 Communications Jammed . | . . . . Distress Signals . | . . . . Times Spotted 72 | . 21 31 20 Peak Tracking Total 7 | . 4 4 7 Tactical Retreats 2 | . . 1 1 Traps | -11 -10 -9 -9 ------- Run | Yrd Mat Mat Sto Traps Triggered 2 | . 1 1 . Indirectly . | . . . . Trap Hack Attempts . | . . . . Triggered . | . . . . Disarmed . | . . . . Reprogrammed . | . . . . Reused . | . . . . Traps Extracted . | . . . . Installed . | . . . . Triggered . | . . . . Machines | -11 -10 -9 -9 ---------- Run | Yrd Mat Mat Sto Machines Disabled 6 | . . 6 . Max in Single Turn 1 | . . 1 . Machines Repaired . | . . . . Machines Dismantled . | . . . . Machines Sabotaged . | . . . . Overloaded Fab Kills . | . . . . Hacking | -11 -10 -9 -9 --------- Run | Yrd Mat Mat Sto Machines Accessed 11 | . 5 4 2 Terminals 9 | . 5 3 1 Fabricators . | . . . . Repair Stations 1 | . . . 1 Recycling Units 1 | . . 1 . Scanalyzers . | . . . . Garrison Access . | . . . . Total Hacks 24 | . 7 5 12 Successful 13 | . 4 3 6 Failed 11 | . 3 2 6 Catastrophic . | . . . . Database Lockouts . | . . . . Manual . | . . . . Terminals 16 | . 7 4 5 Fabricators . | . . . . Repair Stations 7 | . . . 7 Recycling Units 1 | . . 1 . Scanalyzers . | . . . . Garrison Access . | . . . . Terminal Hacks 6 | . 4 2 . Emergency Access Points 1 | . 1 . . Alert Level 4 | . 3 1 . Dispatch Records 1 | . . 1 . Fabricator Hacks . | . . . . Repair Station Hacks 6 | . . . 6 Scan Component 3 | . . . 3 Repair 3 | . . . 3 Recycling Unit Hacks 1 | . . 1 . Retrieve Matter 1 | . . 1 . Scanalyzer . | . . . . Garrison Access Hacks . | . . . . Unauthorized Hacks . | . . . . Terminals . | . . . . Fabricators . | . . . . Repair Stations . | . . . . Recycling Units . | . . . . Scanalyzers . | . . . . Garrison Access . | . . . . Data Cores Recovered 1 | . 1 . . Used . | . . . . Hacking Detections 6 | . 2 2 2 Full Trace Events 2 | . . . 2 Feedback Events 1 | . . . 1 Corruption 1 | . . . 1 Feedback Blocked . | . . . . Robot Schematics Acquired . | . . . . Robots Built . | . . . . Authchips . | . . . . Time . | . . . . Total Robot Build Rating . | . . . . Part Schematics Acquired . | . . . . Parts Built . | . . . . Authchips . | . . . . Time . | . . . . Total Part Build Rating . | . . . . Part Studies Acquired . | . . . . Parts Repaired 3 | . . . 3 Time 84 | . . . 84 Parts Recycled . | . . . . Recycled Matter . | . . . . Retrieved Matter . | . . . . Retrieved Components . | . . . . Parts Scanalyzed . | . . . . Part Schematics Acquired . | . . . . Parts Damaged . | . . . . Bothacking | -11 -10 -9 -9 ------------ Run | Yrd Mat Mat Sto Used RIF Installer . | . . . . Robots Hacked . | . . . . Non-combat . | . . . . Combat . | . . . . Robot Hacks Applied . | . . . . Relay Couplers Released . | . . . . Fabnet Peak Effective % . | . . . . Robots Rewired . | . . . . Allies Hacked . | . . . . Hacks Repelled . | . . . . Allies | -11 -10 -9 -9 -------- Run | Yrd Mat Mat Sto Total Allies . | . . . . Largest Group . | . . . . Highest-Rated Group . | . . . . Highest-Rated Ally . | . . . . Total Orders . | . . . . Ally Attacks . | . . . . Total Damage . | . . . . Kills . | . . . . Allies Corrupted . | . . . . Allies Melted . | . . . . Intel | -11 -10 -9 -9 ------- Run | Yrd Mat Mat Sto Active Infowar (turns) 25 | . 25 . . Structural 25 | . 25 . . Robot Analysis Total . | . . . . Derelict Logs Recovered . | . . . . Drone Launches . | . . . . Drone Recoveries . | . . . . Exploration | -11 -10 -9 -9 ------------- Run | Yrd Mat Mat Sto Turns Passed 3430 | 4 1019 1795 612 Spaces Moved 1780 | 3 711 845 221 Core . | . . . . Treads . | . . . . Legs 1780 | 3 711 845 221 Wheels . | . . . . Hover . | . . . . Flight . | . . . . Fastest Speed 120 | 120 120 120 120 Average Speed 160 | 120 120 186 189 Slowest Speed 190 | 120 120 190 190 Overloaded Moves . | . . . . Propulsion Burnouts . | . . . . Robots Hopped . | . . . . Potential Cave-ins 1 | . 1 . . Cave-ins Triggered . | . . . . Exploration Rate (%) 38 | 2 82 46 25 Regions Visited 3 Branch Regions 1 Pre-discovered Areas . | . . . . Known Exits Taken . | . . . . Unknown Exits Taken 3 | 1 1 1 . Scrap Searched . | . . . . Spaces Dug . | . . . . Terrain Destroyed 179 | . 55 124 . Melee . | . . . . Projectile . | . . . . AOE 179 | . 55 124 . Terrain Rammed . | . . . . Walls Destroyed . | . . . . Machines Disabled . | . . . . Actions | -11 -10 -9 -9 --------- Run | Yrd Mat Mat Sto Total 2138 | 4 817 967 350 Wait 115 | . 23 15 77 Move 1777 | 2 710 844 221 Hop . | . . . . Pick Up 23 | . 10 10 3 Fast Attach 5 | . 2 2 1 Attach 8 | . 3 3 2 Detach . | . . . . Swap 43 | . 15 24 4 Drop 37 | 2 9 22 4 Fire 122 | . 42 47 33 Melee . | . . . . Ram . | . . . . Kick 8 | . 3 . 5 Crush . | . . . . Escape Stasis . | . . . . Rewire . | . . . . Trap . | . . . . Miscellaneous . | . . . . Route ------- -11/Scrapyard -10/Materials (discovered 4 exits: *Mat x3 / [*Min]) -9/Materials (discovered 3 exits: [*Mat] / [*Min] / *Sto) -9/Storage History --------- Turn | Location | Event 1 | -11/Scrapyard | Discovered new exit (range 2) 5 | -11/Scrapyard | Entered Materials 302 | -10/Materials | Build established: Mutant 502 | -10/Materials | Discovered new exit (range 8) 584 | -10/Materials | Discovered new exit (range 16) 719 | -10/Materials | Lost 3 parts (1p2w) 810 | -10/Materials | Discovered new exit (range 5) 999 | -10/Materials | Discovered new exit (range 8) 1024 | -10/Materials | Entered another Materials area 1024 | -9/Materials | Evolved 2 slots: Utility x1, Weapon x1 1058 | -9/Materials | Discovered new exit (range 6) 1182 | -9/Materials | Discovered new exit (range 5) 1708 | -9/Materials | Discovered new exit (range 16) 1918 | -9/Materials | Build established: Scavenger-Bomber 2819 | -9/Materials | Entered Storage 2848 | -9/Storage | Build established: Tank 2861 | -9/Storage | Repaired Aluminum Leg 2887 | -9/Storage | Repaired Aluminum Leg 2960 | -9/Storage | Repaired Cooling System 3038 | -9/Storage | Core integrity fell below 50% 3426 | -9/Storage | Core integrity fell below 20% 3431 | -9/Storage | Destroyed by Y-45 Defender with Heavy Assault Rifle Last Messages --------------- 03355_ R-06 Scavenger collects Ion Engine. 03356_ R-06 Scavenger collects Heat Sink. 03356_ K-01 Serf cleans the Compression Vault. 03359_ R-06 Scavenger collects Aluminum Leg. 03360_ K-01 Serf cleans the Component Storage. 03383_ ALERT: Hostiles spotted, dispatching reinforcements to Terminal S006. 03385_ K-01 Serf cleans the Component Storage. 03403_ Hvy. Particle Gun destroyed. 03404_ Imp. Ion Engine destroyed. 03408_ Imp. Assault Rifle destroyed. 03420_ Destroyed Flight Unit. 03422_ Cooling System destroyed. 03423_ Imp. Ion Engine destroyed. 03425_ Hvy. Particle Gun destroyed. 03425_ Kicked S-10 Pest. 03428_ Propulsion Shielding destroyed. 03429_ Kicked S-10 Pest. Map ----- +----------------------------------------------------+ | | | | | ????????????????????????????????????????????? | | ????????????????????????????????????????????? | | ?????????????????????????###########????????? | | ?????##################### # ##???????? | | ?????# =[[ + T#???????? | | ?????# *[=[% " ##""##???????? | | ?????# == % #????????????? | | ?????######+############## #????????????? | | ????????#=%%*![ ########### ##????????????? | | ????????#=%%! = ## # #?????????????? | | ????????#==% ## """ # #?????????????? | | ????????# # """ # #?????????????? | | ????????# % ## """!# #?????????????? | | ??????### !! ## == % #?????????????? | | ?????#""" ## """%# #?????????????? | | ?????#"R """ ## """ # #?????????????? | | ?????#""" "R ## """ # #?????????????? | | ?????#### """ ## # #?????????????? | | ????????# ########### #??#####??????? | | ????????######### !!= ## #? """"??????? | | ???????????????# = !!= T ## #? """"" ????? | | ????????????????#Y !== ## # """"" #???? | | ????????????????#Ys % ## # #???? | | ????????????????# s @ ## / | #???? | | ????????????????#+###s##### # #???? | | ????????????????# # #???? | | ????????????????+ #? #???? | | ????????????????# """"" #?###### ##???? | | ????????????????### """"" #?????????????? | | ??????????????????# """"" ""#???????????? | | ?????????????????#" Y"#???????????? | | ?????????????????#T ""#???????????? | | ?????????????????#" """"" ###???????????? | | ?????????????????## """"" T?????????????? | | ??????????????????# ?"""" ##????????????? | | ?????????????????? ??? #?????????????? | | ?????????????????? ????? #?????????????? | | ?????????????????? ???? #?????????????? | | ??????????????????#?????? #####?????????????? | | ???????????????????????? ??????????????????? | | ????????????????????????? ??????????????????? | | ????????????????????????? ??????????????????? | | ????????????????????????????????????????????? | | ????????????????????????????????????????????? | | ????????????????????????????????????????????? | | ????????????????????????????????????????????? | | ????????????????????????????????????????????? | | ????????????????????????????????????????????? | +----------------------------------------------------+ Best States ------------- Heat Dissipation 50 Energy Generation 12 Energy Capacity 415 Matter Stores 300 Matter Capacity 300 Sight Range 16 Terrain Scan Density 10 Power Shielding 33 Propulsion Shielding 33 Evasion (%) 55 Item Schematics ----------------- None Robot Schematics ------------------ None Fabricated ------------ Nothing Repaired ---------- Aluminum Leg | 67% | -9/Storage Cooling System | 80% | -9/Storage Studied --------- None Alien Tech Used ----------------- None Achievements -------------- Resistances Are Futile Challenges ------------ None Game ------ Seed ForceStealthBarrier Manual? 0 Play Time 00:48:06 Cumulative 121.3 hours Start 2026.03.18 @ 16:38:58 End 2026.03.20 @ 16:50:16 Sessions 8 Manual Loads 0 Difficulty Rogue Special Mode None Game No. 67 Rogue 32 Adventurer 0 Explorer 35 Win Type - Total 1 Types 1/0/0/0/0/0/0/0/0/0 Lore% 32 Gallery% 35 Achievement% 28 Wizard Run 0 Options --------- Layout 0 ASCII 1 Keyboard 1 Movement Vi Keybinds 1 Fullscreen 0 Font 20/SmallcapsGlow Map View 50x62 Zoom Use 0% Tactical HUD 1 Map Filters NONE Filters NONE Steam 0 RUN: b957c6f9-2292-4938-98b7-1f85a7e44426